Cogmind - Beta 13 @@@ ROGUE MODE // 2024.04.28 @ 19:12:25 Player: SlyFyer Result: Destroyed by G-47 Trooper with Particle Gun Performance ------------- Evolutions (2) 1000 Regions Visited (9) 1800 Robots Destroyed (144) 720 Value Destroyed (4549) 4549 Prototype IDs (28) 560 Alien Tech Used (0) 0 Bonus (2068) 2068 TOTAL SCORE: 10697 Bonus ------- High Alert Combat Kills 614 Follower Combat Kills 70 Entered Garrisons 200 Used RIF Installer 1000 Aligned with FarCom 300 Friendly Fire -116 Cogmind --------- Core Integrity 0/550 Matter 300/300 Energy 100/100 System Corruption 9% Temperature Warm (181) Movement Core (400) Ox7 Location -8/Materials Parts ------- > --- POWER (1) -------- (None) > --- PROPULSION (3) --- (None) > --- UTILITY (5) ------ Large Storage Unit Targeting Computer System Shield System Shield > --- WEAPON (2) ------- Flak Gun > --- INVENTORY (15) --- High-capacity Matter Pod (180) Structural Scanner Experimental Sensor Array Improved Signal Interpreter Kinecellerator Cloak of Protection System Shield Relay Coupler [Swarmer] (42) Advanced Beam Rifle Remote Datajack Remote Datajack Plasma Cutter Mace Peak State ------------ > --- POWER ------------ Light Angular Momentum Engine > --- PROPULSION ------- Gravmag System > --- UTILITY ---------- Large Storage Unit Targeting Computer Kinecellerator System Shield System Shield > --- WEAPON ----------- Gauss Rifle Gauss Rifle > --- INVENTORY -------- High-capacity Matter Pod Structural Scanner Experimental Sensor Array Improved Signal Interpreter Cloak of Protection System Shield Relay Coupler [NC] Relay Coupler [Swarmer] Gauss Rifle Flak Gun Remote Datajack Remote Datajack Plasma Cutter Mace [Rating: 33] Favorites ----------- Power Light Deuterium Engine Engine Light Deuterium Engine Power Core Light Nuclear Core Propulsion Compact Wheel Treads Armored Treads Leg Aluminum Leg Wheel Compact Wheel Hover Unit Gravmag System Utility Large Storage Unit Device Structural Scanner Storage Large Storage Unit Processor Targeting Computer Hackware System Shield Protection Improved Light Armor Plating Weapon Improved Light Cannon Energy Gun Advanced Beam Rifle Energy Cannon Beam Cannon Ballistic Gun Assault Rifle Ballistic Cannon Improved Light Cannon Launcher Grenade Launcher Special Weapon Plasma Cutter Impact Weapon Mace Special Melee Weapon Datajack Build | -11 -10 -10 -9 -9 -9 -8 -8 -8 -8 ------- Run | Yrd Mat Min Mat Min Exi Min Mat Gar Mat Slots Evolved 4 | . . . 2 . . . 2 . . Power . | . . . . . . . . . . Propulsion 1 | . . . 1 . . . . . . Utility 3 | . . . 1 . . . 2 . . Weapon . | . . . . . . . . . . Parts Attached 143 | 6 9 4 38 6 1 . 20 42 17 Power 14 | 1 1 1 3 1 . . 1 4 2 Engine 12 | 1 1 1 3 1 . . 1 2 2 Core 2 | . . . . . . . . 2 . Reactor . | . . . . . . . . . . Propulsion 22 | 2 . 1 10 1 . . 2 3 3 Treads 3 | . . . 3 . . . . . . Leg 3 | . . . . . . . . . 3 Wheel 15 | 2 . 1 7 1 . . 2 2 . Hover 1 | . . . . . . . . 1 . Flight . | . . . . . . . . . . Utility 33 | 1 4 2 8 1 1 . 7 8 1 Device 14 | . 2 1 4 . . . 3 4 . Storage 3 | 1 1 . . . 1 . . . . Processor 3 | . . . 2 . . . 1 . . Hackware 3 | . . . . . . . . 2 1 Protection 10 | . 1 1 2 1 . . 3 2 . Artifact . | . . . . . . . . . . Weapon 74 | 2 4 . 17 3 . . 10 27 11 Energy Gun 4 | 1 . . 1 . . . . . 2 Energy Cannon 2 | . 1 . 1 . . . . . . Ballistic Gun 28 | 1 1 . 5 2 . . 4 10 5 Ballistic Cannon 13 | . . . 6 . . . 2 5 . Launcher 1 | . 1 . . . . . . . . Special Weapon 10 | . 1 . 1 1 . . . 4 3 Impact Weapon 15 | . . . 2 . . . 4 8 1 Slashing Weapon . | . . . . . . . . . . Piercing Weapon . | . . . . . . . . . . Special Melee Weapon 1 | . . . 1 . . . . . . Unidentified Prototypes 4 | . . 1 1 . . . 1 . 1 Parts Lost 41 | . . 1 15 1 . . . 13 11 Power 7 | . . . 2 . . . . 3 2 Propulsion 17 | . . 1 6 1 . . . 5 4 Utility 7 | . . . 1 . . . . 5 1 Weapon 10 | . . . 6 . . . . . 4 Highest Loss Streak 6 | . . 1 4 1 . . . 4 6 To Critical Strikes . | . . . . . . . . . . Average Slot Usage (%) 89 | . 99 98 86 99 100 100 99 77 83 Engine 8 | . 14 14 6 11 11 11 9 4 5 Treads 4 | . . . 15 . . . . . . Wheel 18 | . 28 27 11 32 33 33 27 12 . Device 7 | . 13 5 4 11 11 11 15 5 3 Storage 10 | . 14 14 11 11 11 11 9 9 9 Processor 7 | . . . 12 7 . . 9 9 9 Hackware 3 | . . . . . . . . 8 23 Protection 5 | . . 8 2 3 11 11 11 5 . Ballistic Gun 11 | . 18 28 8 10 11 11 13 10 10 Ballistic Cannon 6 | . . . 11 11 11 11 2 3 . Naked Turns . | . . . . . . . . . . Heaviest Build 51 | 14 28 35 38 36 36 36 45 51 41 Greatest Support 60 | 20 20 20 60 48 48 48 48 44 35 Greatest Overweight (x) 10 | . 1 2 9 1 . . 1 9 10 Average Overweight (x) . | . . 1 . . . . . 1 . Largest Inventory Capacity 15 | 8 15 15 15 15 15 15 15 15 15 Average Capacity 14 | 6 9 15 15 15 15 15 15 15 15 Most Carried 15 | 5 9 14 15 15 15 15 15 15 14 Average Carried 13 | 1 5 12 13 15 14 15 14 14 12 Final Capacity 15 | 8 15 15 15 15 15 15 15 15 15 Final Carried 15 | 1 9 12 15 15 15 15 15 14 13 Class Distribution -------------------- 70% | Mutant 17% | Scavenger-Mutant 11% | Hacker-Mutant Dominant Class ---------------- Mutant | -10/Materials Mutant | -10/Mines Mutant | -9/Materials Mutant | -9/Mines Scavenger-Mutant | -9/Exiles Scavenger-Mutant | -8/Mines Mutant | -8/Materials Mutant | -8/Garrison Hacker-Mutant | -8/Materials Resources | -11 -10 -10 -9 -9 -9 -8 -8 -8 -8 ----------- Run | Yrd Mat Min Mat Min Exi Min Mat Gar Mat Matter Collected 5041 | 96 242 108 1218 439 . . 663 1431 844 Remotely . | . . . . . . . . . . Salvage Created 4668 | . 323 117 1385 255 . . 582 1093 913 Parts 285 | . 21 8 96 15 . . 34 68 43 Haulers Intercepted 4 | . 1 . 2 . . . . . 1 Recyclers Shooed 4 | . . 1 1 . . . . . 2 Parts Field Recycled . | . . . . . . . . . . Retrieved Matter . | . . . . . . . . . . Parts Self-Destructed . | . . . . . . . . . . Prevented . | . . . . . . . . . . Kills | -11 -10 -10 -9 -9 -9 -8 -8 -8 -8 ------- Run | Yrd Mat Min Mat Min Exi Min Mat Gar Mat Combat Hostiles Destroyed 120 | . 7 5 31 10 . . 11 37 19 Guns 73 | . 1 5 18 7 . . 3 20 19 Cannons 40 | . 1 . 13 3 . . 6 17 . AOE 7 | . 5 . . . . . 2 . . Classes Destroyed 16 | . 6 . 5 . . . 1 3 1 Worker 2 | . 1 . 1 . . . . . . Builder 1 | . . . 1 . . . . . . Tunneler 1 | . 1 . . . . . . . . Hauler 4 | . 1 . 2 . . . . . 1 Recycler 4 | . . . 1 1 . . 1 . 1 Operator 2 | . . . 2 . . . . . . Watcher 10 | . 2 . 5 . . . 3 . . Swarmer 34 | . 3 3 7 8 . . . 10 3 Grunt 53 | . 4 2 15 2 . . 6 12 12 Duelist 2 | . . . 1 . . . . . 1 Protector 1 | . . . . . . . . 1 . Sentry 20 | . . . 8 . . . 4 6 2 Demolisher 1 | . . . . . . . . 1 . Hunter 1 | . . . . . . . . . 1 Programmer 7 | . . . . . . . . 7 . Heavy 1 | . . . . . . . 1 . . Best Kill Streak 9 | . 6 3 4 4 . . 6 9 9 Combat Bots Only 9 | . 3 3 4 4 . . 6 9 9 Max Kills in Single Turn 2 | . 2 1 1 2 . . 2 2 1 Gunslinging . | . . . . . . . . . . Exploded 2 | . 2 . . . . . 2 . . Melee . | . . . . . . . . . . Uniques/NPCs Destroyed . | . . . . . . . . . . Combat | -11 -10 -10 -9 -9 -9 -8 -8 -8 -8 -------- Run | Yrd Mat Min Mat Min Exi Min Mat Gar Mat Hostile Shots Fired 659 | . 27 50 174 40 . . 30 210 128 Missed 198 | . 8 19 53 9 . . 8 72 29 Damage Taken 5857 | . 217 303 1362 294 . . 327 1906 1448 Core 941 | . 67 61 206 45 . . 15 267 280 Absorbed by Shields . | . . . . . . . . . . Redirected to Shielding 135 | . . 41 . . . . 94 . . Core Remaining (%) 61 | 100 . 48 . . . 37 . . . Volleys Fired 407 | . 27 21 130 19 . . 47 94 69 Largest 2 | . 2 2 2 2 . . 2 2 2 Hottest 122 | . 100 40 100 100 . . 69 88 122 Shots Fired 774 | . 46 42 251 37 . . 94 182 122 Gun 557 | . 25 42 177 18 . . 65 114 116 Cannon 195 | . 11 . 69 18 . . 29 68 . Launcher 5 | . 5 . . . . . . . . Special 17 | . 5 . 5 1 . . . . 6 Kinetic 697 | . 23 42 242 36 . . 94 182 78 Thermal 60 | . 16 . 5 1 . . . . 38 Explosive 5 | . 5 . . . . . . . . Electromagnetic 6 | . 2 . 4 . . . . . . Robot Hit Streak 18 | . 6 4 11 14 . . 18 16 11 Robot Miss Streak 8 | . 8 5 6 1 . . 6 6 6 Penetration Max 1 | . . . . . . . . 1 1 Secondary Targets 5 | . . 1 . . . . . 2 2 Max Gunslinging Chain 1 | . . 1 . . . . . 1 1 Shots Hit Robots 472 | . 15 21 138 22 . . 68 126 82 Core Hits 324 | . 18 8 60 12 . . 44 116 66 Critical Kills 3 | . . . . . . . . 2 1 Critical Parts Destroyed 3 | . . . 1 . . . . 1 1 Critical Strikes 9 | . . . 4 . . . . 3 2 Destroy 6 | . . . 1 . . . . 3 2 Blast 3 | . . . 3 . . . . . . Melee Attacks 47 | . . . 5 . . . 13 26 3 Impact 43 | . . . 1 . . . 13 26 3 Slashing . | . . . . . . . . . . Piercing . | . . . . . . . . . . Sneak Attacks 4 | . . . 4 . . . . . . Combat Hostiles . | . . . . . . . . . . Follow-up Attacks . | . . . . . . . . . . Damage Inflicted 9225 | . 667 276 2108 408 . . 1242 2773 1751 Guns 6227 | . 101 276 1418 212 . . 720 1749 1751 Cannons 2516 | . 105 . 669 196 . . 522 1024 . Explosions 469 | . 448 . 21 . . . . . . Melee . | . . . . . . . . . . Ramming 13 | . 13 . . . . . . . . Kinetic 8116 | . 77 276 2069 408 . . 1242 2773 1271 Thermal 606 | . 105 . 21 . . . . . 480 Explosive 358 | . 358 . . . . . . . . Electromagnetic 132 | . 114 . 18 . . . . . . Impact . | . . . . . . . . . . Slashing . | . . . . . . . . . . Piercing . | . . . . . . . . . . Highest Corruption 9 | . . . . . . . . 9 9 Average Corruption 6 | . . . . . . . . 5 9 Corruption Purged . | . . . . . . . . . . Corruption Blocked . | . . . . . . . . . . Effects 70 | . . . . . . . . 50 20 Message Errors 18 | . . . . . . . . 11 7 Matter Fused 14 | . . . . . . . . 11 3 Heat Flow Errors 7 | . . . . . . . . 7 . Energy Discharges 6 | . . . . . . . . 5 1 Parts Rejected 1 | . . . . . . . . . 1 Parts Fused 2 | . . . . . . . . 1 1 Data Loss (minor) 11 | . . . . . . . . 10 1 Data Loss (major) 4 | . . . . . . . . 2 2 Misfires 2 | . . . . . . . . . 2 Alerts 3 | . . . . . . . . 2 1 Weapon Failures 2 | . . . . . . . . 1 1 Overload Shots . | . . . . . . . . . . Overflow Damage 42 | . 13 . 29 . . . . . . Projectiles 29 | . . . 29 . . . . . . Explosions 13 | . 13 . . . . . . . . Melee . | . . . . . . . . . . Knockbacks 42 | . . . 3 2 . . 17 20 . Impact . | . . . . . . . . . . Kinetic 38 | . . . 3 2 . . 15 18 . Secondary 4 | . . . . . . . 2 2 . Self-Inflicted Damage 6 | . 6 . . . . . . . . Shots . | . . . . . . . . . . Rammed 2 | . 2 . . . . . . . . Targets Rammed 2 | . 2 . . . . . . . . Kicked . | . . . . . . . . . . Crushed . | . . . . . . . . . . Highest Temperature 453 | . 189 3 20 33 . . 158 227 453 Average Temperature 73 | . 60 1 7 17 . . 37 67 173 Received Heat Transfer 2034 | . 93 78 462 60 . . 180 531 630 Effects 5 | . . . . . . . . 1 4 Shutdowns 1 | . . . . . . . . . 1 Energy Bleed 2 | . . . . . . . . . 2 Interference 2 | . . . . . . . . 1 1 Siege Activations . | . . . . . . . . . . Robots Corrupted . | . . . . . . . . . . Combat Hostiles . | . . . . . . . . . . Parts Fried 1 | . . . 1 . . . . . . Impact Corruptions . | . . . . . . . . . . Robots Melted . | . . . . . . . . . . Combat Hostiles . | . . . . . . . . . . Parts Melted 1 | . 1 . . . . . . . . Heat Transferred 1130 | . 222 . 50 . . . . . 858 Parts Sabotaged . | . . . . . . . . . . Parts Stolen . | . . . . . . . . . . Parts Stripped . | . . . . . . . . . . Power Chain Reactions 1 | . . . 1 . . . . . . Alert | -11 -10 -10 -9 -9 -9 -8 -8 -8 -8 ------- Run | Yrd Mat Min Mat Min Exi Min Mat Gar Mat Peak Influence 1194 | . 314 166 346 325 . . 318 1194 877 Initial 581 | . . 41 64 91 . . . 65 581 Average 297 | . 192 116 147 234 . . 77 665 703 Maximum Alert Level 4 | . 1 . 1 1 . . 1 4 3 Low Security (%) 57 | 100 39 100 82 44 . 100 95 15 . Level 1 19 | . 60 . 17 56 . . 4 11 . Level 2 9 | . . . . . . . . 28 39 Level 3 13 | . . . . . . . . 41 60 Level 4 . | . . . . . . . . 3 . Level 5 . | . . . . . . . . . . High Security . | . . . . . . . . . . Max Security . | . . . . . . . . . . Squads Dispatched 12 | . 1 . 4 . . . 4 . 3 Investigation 6 | . 1 . 3 . . . 1 . 1 Extermination . | . . . . . . . . . . Reinforcement 4 | . . . 1 . . . 2 . 1 Assault 1 | . . . . . . . . . 1 Garrison 1 | . . . . . . . 1 . . Intercept . | . . . . . . . . . . Searches Triggered . | . . . . . . . . . . Construction Impeded . | . . . . . . . . . . Haulers Reinforced . | . . . . . . . . . . Active Scanning Responses . | . . . . . . . . . . Cargo Convoy Interrupts . | . . . . . . . . . . Stealth | -11 -10 -10 -9 -9 -9 -8 -8 -8 -8 --------- Run | Yrd Mat Min Mat Min Exi Min Mat Gar Mat Distress Signals 10 | . 2 . 3 . . . 2 . 3 Communications Jammed . | . . . . . . . . . . Distress Signals . | . . . . . . . . . . Times Spotted 183 | . 14 5 53 10 . . 25 47 29 Peak Tracking Total 8 | . 4 3 4 4 . . 4 7 8 Tactical Retreats 6 | . . . 2 . . . 2 1 1 Traps | -11 -10 -10 -9 -9 -9 -8 -8 -8 -8 ------- Run | Yrd Mat Min Mat Min Exi Min Mat Gar Mat Traps Triggered 8 | . . . 1 . . . 1 5 1 Indirectly . | . . . . . . . . . . Trap Hack Attempts . | . . . . . . . . . . Triggered . | . . . . . . . . . . Disarmed 4 | . 1 . 3 . . . . . . Reprogrammed . | . . . . . . . . . . Reused . | . . . . . . . . . . Traps Extracted . | . . . . . . . . . . Installed . | . . . . . . . . . . Triggered . | . . . . . . . . . . Machines | -11 -10 -10 -9 -9 -9 -8 -8 -8 -8 ---------- Run | Yrd Mat Min Mat Min Exi Min Mat Gar Mat Machines Disabled 11 | . 7 1 . . . . . 3 . Max in Single Turn 2 | . 2 1 . . . . . 1 . Garrison Relay 5 | . . . . . . . . 5 . Machines Repaired . | . . . . . . . . . . Machines Dismantled 4 | . . . . . . . . 4 . Machines Sabotaged . | . . . . . . . . . . Overloaded Fab Kills . | . . . . . . . . . . Hacking | -11 -10 -10 -9 -9 -9 -8 -8 -8 -8 --------- Run | Yrd Mat Min Mat Min Exi Min Mat Gar Mat Machines Accessed 27 | . 9 1 7 2 1 . 5 1 1 Terminals 20 | . 8 . 5 2 . . 4 1 . Fabricators . | . . . . . . . . . . Repair Stations . | . . . . . . . . . . Recycling Units 1 | . 1 . . . . . . . . Scanalyzers 3 | . . . 2 . . . . . 1 Garrison Access 1 | . . . . . . . 1 . . Total Hacks 76 | . 25 1 25 6 1 . 14 1 3 Successful 48 | . 16 1 15 2 1 . 9 1 3 Failed 28 | . 9 . 10 4 . . 5 . . Catastrophic 4 | . 1 . 1 1 . . 1 . . Database Lockouts . | . . . . . . . . . . Manual 44 | . 20 . 15 . 1 . 8 . . Terminals 58 | . 23 . 15 6 . . 13 1 . Fabricators . | . . . . . . . . . . Repair Stations . | . . . . . . . . . . Recycling Units 2 | . 2 . . . . . . . . Scanalyzers 13 | . . . 10 . . . . . 3 Garrison Access 1 | . . . . . . . 1 . . Terminal Hacks 23 | . 8 1 5 2 1 . 5 1 . Open Door 1 | . . 1 . . . . . . . Level Access Points 1 | . . . . 1 . . . . . Emergency Access Points 1 | . . . . . . . . 1 . Terminal Index 3 | . 1 . 1 . . . 1 . . Alert Level 3 | . . . 1 1 . . 1 . . Unreport Threat 2 | . . . 1 . . . 1 . . Disarm Traps 3 | . 2 . 1 . . . . . . Dispatch Records 1 | . . . . . . . 1 . . Hauler Manifests 3 | . 1 . 1 . . . 1 . . Registered Components 2 | . 2 . . . . . . . . Zone Layout 2 | . 2 . . . . . . . . Derelict Proto ID Bank 1 | . . . . . 1 . . . . Fabricator Hacks . | . . . . . . . . . . Repair Station Hacks . | . . . . . . . . . . Recycling Unit Hacks . | . . . . . . . . . . Scanalyzer 9 | . . . 6 . . . . . 3 Insert Component 4 | . . . 2 . . . . . 2 Analyze 5 | . . . 4 . . . . . 1 Garrison Access Hacks 1 | . . . . . . . 1 . . Unlock Access 1 | . . . . . . . 1 . . Unauthorized Hacks 15 | . 8 . 4 . . . 3 . . Terminals 14 | . 7 . 4 . . . 3 . . Track 1 | . 1 . . . . . . . . Assimilate 5 | . 2 . 1 . . . 2 . . Botnet 6 | . 3 . 2 . . . 1 . . Operators 2 | . 1 . 1 . . . . . . Fabricators . | . . . . . . . . . . Repair Stations . | . . . . . . . . . . Recycling Units 1 | . 1 . . . . . . . . Reject 1 | . 1 . . . . . . . . Scanalyzers . | . . . . . . . . . . Garrison Access . | . . . . . . . . . . Data Cores Recovered . | . . . . . . . . . . Used . | . . . . . . . . . . Hacking Detections 17 | . 6 . 6 1 . . 3 1 . Full Trace Events 6 | . 2 . 2 1 . . 1 . . Feedback Events . | . . . . . . . . . . Feedback Blocked . | . . . . . . . . . . Robot Schematics Acquired . | . . . . . . . . . . Robots Built . | . . . . . . . . . . Authchips . | . . . . . . . . . . Time . | . . . . . . . . . . Total Robot Build Rating . | . . . . . . . . . . Part Schematics Acquired 1 | . . . . . . . . . 1 Parts Built . | . . . . . . . . . . Authchips . | . . . . . . . . . . Time . | . . . . . . . . . . Total Part Build Rating . | . . . . . . . . . . Parts Repaired . | . . . . . . . . . . Time . | . . . . . . . . . . Parts Recycled . | . . . . . . . . . . Recycled Matter . | . . . . . . . . . . Retrieved Matter . | . . . . . . . . . . Retrieved Components . | . . . . . . . . . . Parts Scanalyzed 2 | . . . 1 . . . . . 1 Part Schematics Acquired 1 | . . . . . . . . . 1 Parts Damaged . | . . . . . . . . . . Bothacking | -11 -10 -10 -9 -9 -9 -8 -8 -8 -8 ------------ Run | Yrd Mat Min Mat Min Exi Min Mat Gar Mat Used RIF Installer 2 | . . . . . . . . 2 . Hotswap 1 | . . . . . . . . 1 . Robots Hacked 3 | . . . 1 . . . . . 2 Non-combat 3 | . . . 1 . . . . . 2 Combat . | . . . . . . . . . . Robot Hacks Applied 5 | . . . 3 . . . . . 2 parse_system 1 | . . . 1 . . . . . . no_distress 1 | . . . 1 . . . . . . drop_inventory 2 | . . . . . . . . . 2 check_alert 1 | . . . 1 . . . . . . Relay Couplers Released 26 | . . . . . . . . 26 . Machine Destruction 22 | . . . . . . . . 22 . Programmers 4 | . . . . . . . . 4 . Attached 1 | . . . . . . . . . 1 Fabnet Peak Effective % . | . . . . . . . . . . Robots Rewired . | . . . . . . . . . . Allies Hacked . | . . . . . . . . . . Hacks Repelled . | . . . . . . . . . . Allies | -11 -10 -10 -9 -9 -9 -8 -8 -8 -8 -------- Run | Yrd Mat Min Mat Min Exi Min Mat Gar Mat Total Allies 4 | . 1 . 1 . . . 1 1 . Largest Group 1 | . 1 1 1 . . . 1 1 . Highest-Rated Group 86 | . 10 10 10 . . . 86 34 . Highest-Rated Ally 86 | . 10 10 10 . . . 86 34 . Total Orders 7 | . 2 1 . . . . 1 3 . STAY 1 | . 1 . . . . . . . . FOLLOW 1 | . 1 . . . . . . . . RETURN 5 | . . 1 . . . . 1 3 . Ally Attacks 36 | . . . 6 . . . 17 13 . Total Damage 315 | . . . 22 . . . 63 230 . Kills 2 | . . . . . . . . 2 . Allies Corrupted . | . . . . . . . . . . Allies Melted . | . . . . . . . . . . Intel | -11 -10 -10 -9 -9 -9 -8 -8 -8 -8 ------- Run | Yrd Mat Min Mat Min Exi Min Mat Gar Mat Robot Analysis Total . | . . . . . . . . . . Derelict Logs Recovered 3 | . . 1 . 2 . . . . . Drone Launches 46 | . . 6 6 . . . 19 15 . Drone Recoveries 41 | . . 6 6 . . . 18 11 . Exploration | -11 -10 -10 -9 -9 -9 -8 -8 -8 -8 ------------- Run | Yrd Mat Min Mat Min Exi Min Mat Gar Mat Turns Passed 9202 | 55 886 297 2763 625 466 499 983 2170 458 Spaces Moved 6042 | 60 833 215 1562 551 462 500 636 1111 112 Core 116 | 15 . . 52 . . . . 45 4 Treads 680 | . . . 680 . . . . . . Legs 90 | . . . . . . . . . 90 Wheels 5013 | 45 833 215 830 551 462 500 636 941 . Hover 143 | . . . . . . . . 125 18 Flight . | . . . . . . . . . . Fastest Speed 50 | 50 80 95 86 100 100 100 96 96 120 Average Speed 118 | 72 83 95 143 100 100 100 98 147 163 Slowest Speed 550 | 80 95 110 500 115 100 100 111 500 550 Overloaded Moves . | . . . . . . . . . . Propulsion Burnouts . | . . . . . . . . . . Robots Hopped . | . . . . . . . . . . Cave-ins Triggered . | . . . . . . . . . . Exploration Rate (%) 62 | 3 92 44 92 96 89 59 44 88 15 Regions Visited 9 Branch Regions 4 Pre-discovered Areas 2 | . . 1 . 1 . . . . . Known Exits Taken 2 | . . . . . . 1 1 . . Unknown Exits Taken 6 | 1 1 1 1 1 1 . . . . Scrap Searched 3 | . . 2 . 1 . . . . . Spaces Dug 34 | . 5 . 9 1 . . 10 7 2 Terrain Destroyed 65 | . 27 . 15 1 . . 10 10 2 Melee 19 | . . . 1 . . . 10 7 1 Projectile 21 | . 5 . 12 1 . . . 3 . AOE 24 | . 22 . 2 . . . . . . Terrain Rammed . | . . . . . . . . . . Walls Destroyed . | . . . . . . . . . . Machines Disabled . | . . . . . . . . . . Actions | -11 -10 -10 -9 -9 -9 -8 -8 -8 -8 --------- Run | Yrd Mat Min Mat Min Exi Min Mat Gar Mat Total 7221 | 70 970 264 1816 582 467 499 902 1388 263 Wait 385 | . 83 17 33 4 . . 151 45 52 Move 6033 | 59 832 214 1561 550 461 499 636 1109 112 Hop . | . . . . . . . . . . Pick Up 99 | 5 12 6 30 . 2 . 18 18 8 Fast Attach 26 | 2 . . 8 4 . . 4 8 . Attach 47 | 4 1 2 17 . . . 4 10 9 Detach 3 | . . . 2 . . . . . 1 Swap 70 | . 8 2 13 2 1 . 12 24 8 Drop 64 | . 5 2 17 3 3 . 17 16 1 Fire 407 | . 27 21 130 19 . . 47 94 69 Melee 47 | . . . 5 . . . 13 26 3 Ram 2 | . 2 . . . . . . . . Kick . | . . . . . . . . . . Crush . | . . . . . . . . . . Escape Stasis 24 | . . . . . . . . 24 . Rewire . | . . . . . . . . . . Trap . | . . . . . . . . . . Miscellaneous 14 | . . . . . . . . 14 . Route ------- -11/Scrapyard -10/Materials (discovered 4 exits: *Mat x3 / *Min) -10/Mines -9/Materials (discovered 4 exits: *Mat x2 / *Min x2) -9/Mines (discovered 3 exits: *Mat x2 / *Exi) -9/Exiles -8/Mines -8/Materials (discovered 3 exits: [*Fac x2] / Gar) -8/Garrison (discovered 2 exits: *Mat x2) -8/Materials History --------- Turn | Location | Event 5 | -11/Scrapyard | Discovered new exit (range 15) 56 | -11/Scrapyard | Entered Materials 228 | -10/Materials | Discovered new exit (range 16) 276 | -10/Materials | Discovered new exit (range 6) 328 | -10/Materials | Build established: Mutant 686 | -10/Materials | Discovered new exit (range 16) 881 | -10/Materials | Discovered new exit (range 6) 942 | -10/Materials | Entered Mines 942 | -10/Mines | Accompanied by 1 ally 950 | -10/Mines | Found a damaged Exp. Sensor Array with a note attached 952 | -10/Mines | Found Prototype Device 1087 | -10/Mines | Core integrity fell below 50% 1138 | -10/Mines | Learned location of Zion (-6) 1181 | -10/Mines | Found the Drone Emporium 1186 | -10/Mines | Found Prototype Device 1187 | -10/Mines | Identified Splice Drone Bay 1226 | -10/Mines | Discovered new exit (range 9) 1239 | -10/Mines | Entered Materials 1239 | -9/Materials | Accompanied by 1 ally 1239 | -9/Materials | Evolved 2 slots: Propulsion x1, Utility x1 1408 | -9/Materials | Discovered new exit (range 16) 1627 | -9/Materials | Lost 4 parts (1p1n2w) 1657 | -9/Materials | Identified Exp. Sensor Array 1820 | -9/Materials | Discovered new exit (range 7) 2020 | -9/Materials | Discovered new exit (range 8) 2085 | -9/Materials | Lost 4 parts (1p1n2w) 3788 | -9/Materials | Discovered new exit (range 10) 3898 | -9/Materials | Core integrity fell below 50% 4002 | -9/Materials | Entered Mines 4004 | -9/Mines | Met a Derelict bent on vengeance 4022 | -9/Mines | Identified exit to Materials 4083 | -9/Mines | Learned Materials emergency access door positions 4257 | -9/Mines | Assembled infested the area 4622 | -9/Mines | Discovered new exit (range 6) 4627 | -9/Mines | Entered Exiles 4652 | -9/Exiles | Met 8R-AWN 4668 | -9/Exiles | Met EX-HEX 4698 | -9/Exiles | Met EX-BIN 4706 | -9/Exiles | Build established: Scavenger-Mutant 4710 | -9/Exiles | Aligned with FarCom system 4711 | -9/Exiles | Given EX-Vault access code 4737 | -9/Exiles | Opened EX-Vault 4746 | -9/Exiles | Found Cloak of Protection 4771 | -9/Exiles | Warned to stay clear of 0b10 Research branches 4808 | -9/Exiles | Met EX-DEC 4849 | -9/Exiles | Visited The Gauntlet 5081 | -9/Exiles | Discovered new exit (range 12) 5093 | -9/Exiles | Left Exiles lab with Cloak of Protection 5093 | -9/Exiles | Entered Mines 5318 | -8/Mines | Discovered exit to Materials (range 9) 5592 | -8/Mines | Entered Materials 5592 | -8/Materials | Evolved 2 slots: Utility x2 6097 | -8/Materials | Build established: Mutant 6190 | -8/Materials | Discovered new exit (range 10) 6424 | -8/Materials | Discovered new exit (range 9) 6479 | -8/Materials | Garrison activated, responded to threat 6575 | -8/Materials | Identified exit to Garrison 6575 | -8/Materials | Entered Garrison 6732 | -8/Garrison | Garrison Relay disabled 6889 | -8/Garrison | Triggered checkpoint 6921 | -8/Garrison | Triggered checkpoint 6956 | -8/Garrison | Destroyed 9 combat bots 6987 | -8/Garrison | Lost 4 parts (1p1n2u) 7147 | -8/Garrison | Triggered checkpoint 7182 | -8/Garrison | Garrison Relay disabled 7249 | -8/Garrison | Triggered checkpoint 7425 | -8/Garrison | Lost 3 parts (2n1u) 7471 | -8/Garrison | Discovered new exit (range 11) 7508 | -8/Garrison | Spotted B-75 Beast 7541 | -8/Garrison | Triggered checkpoint 7564 | -8/Garrison | Garrison Relay disabled 7654 | -8/Garrison | Garrison Relay disabled 7873 | -8/Garrison | Discovered new exit (range 12) 7882 | -8/Garrison | Installed Relay Interface Framework 7945 | -8/Garrison | Triggered checkpoint 7979 | -8/Garrison | Garrison Relay disabled 8038 | -8/Garrison | Expanded RIF knowledge: Hotswap 8125 | -8/Garrison | Core integrity fell below 50% 8158 | -8/Garrison | Lost 3 parts (1p1n1u) 8350 | -8/Garrison | Build established: Hacker-Mutant 8745 | -8/Garrison | Entered Materials 8885 | -8/Materials | Lost 3 parts (1n2w) 9145 | -8/Materials | First assault squad dispatched 9176 | -8/Materials | Core integrity fell below 20% 9203 | -8/Materials | Destroyed by G-47 Trooper with Particle Gun Last Messages --------------- 09160_ K-01 Serf collects debris. 09162_ Aluminum Leg destroyed. 09163_ Overheating: Energy bleed (-7). 09163_ K-01 Serf collects debris. 09166_ Aluminum Leg destroyed. 09167_ K-01 Serf collects debris. 09168_ S-10 Pest destroyed. 09169_ System corrupted: Matter fused (-5). 09170_ S-10 Pest destroyed. 09181_ G-47 Trooper destroyed. 09181_ Switching to secondary target: G-50 Soldier. 09181_ Carbon-fiber Leg destroyed. 09187_ F2SXEXOH UPO>>9TTCWN<583EPIE 09189_ Lgt. Ion Engine destroyed. 09193_ L-31 Rogue destroyed. 09195_ Overheating: System interference. 09195_ Flak Gun temporarily disabled. 09196_ Relay Coupler [NC] destroyed. 09198_ Acquired 81 matter. 09202_ Adv. Beam Rifle destroyed. Map ----- +----------------------------------------------------+ | ??????????????????????# "" ?????? | | ??????????????????????# #????? | | ??????????????????????# """ """ #????? | | ?????????????########## """ """ #????? | | ?????????????# # """ """ #????? | | ?????????????# ! # #????? | | ?????????????# ! ####/########### | | ?????????????# ! # | | ????????????##[ + | | ????????????#=%[""" # | | ????????????##! """ # ############## | | ?????????????# """ # ????????????# | | ?????????????# #?#???????????# | | ?????????????##+#######+##??????????# | | ??????????????# #???? ???????????# | | ?????????#????# #??? ?????????????# | | ?????##### ???# #?? ??????????????# | | ?????? + ### ## ???????????????# | | ?????????# # ????????????????# | | ?????????# + ?????????????????## | | ?????????######=*#???????????????????? | | ?????????# ===#%=#???????????????????? | | ?????????# =g%m* #???????????????????? | | ?????????# [gg# #??????????????? | | ?????????# %= #i #??????????????? | | ?????????# @###### #??????????????? | | ???Y?????# #?????w T#????????????? | | ?????????# #???????""#????????????? | | ?????????# #????????##????????????? | | ?????????# #??????????????????????? | | ?????????######??????????????????????? | | ?????????????????????????????????????? | | ?????????????????????????????????????? | | ?????????????????????????????????????? | | ?????????????????????????????????????? | | ?????????????????????????????????????? | | ?????????????????????????????????????? | | ?????????????????????????????????????? | | ?????????????????????????????????????? | | ?????????????????????????????????????? | | ?????????????????????????????????????? | | ?????????????????????????????????????? | | ?????????????????????????????????????? | | ?????????????????????????????????????? | | ?????????????????????????????????????? | | ?????????????????????????????????????? | | ?????????????????????????????????????? | | ?????????????????????????????????????? | | ?????????????????????????????????????? | | ?????????????????????????????????????? | +----------------------------------------------------+ Best States ------------- Heat Dissipation 31 Energy Generation 18 Energy Capacity 250 Matter Stores 300 Matter Capacity 300 Sight Range 18 Terrain Scan Density 10 Cloak Strength 5 Armor Coverage 300 Utility Shielding 66 Weapon Shielding 33 Evasion (%) 55 Targeting Accuracy 5 Recoil Reduction 3 Kinecelleration 30 Defensive Hacking 20 Relay Coupler Types 1 Relay Coupler Value 17 Item Schematics ----------------- Kinecellerator | -8/Materials | Scanalyzed Robot Schematics ------------------ None Fabricated ------------ Nothing Alien Tech Used ----------------- None Achievements -------------- Factory Defaults Release The Drones! Challenges ------------ None Game ------ Seed DrainedClaymoresBeamcaster Manual? 0 Play Time 01:23:19 Cumulative 75.5 hours Start 2024.04.28 @ 17:01:01 End 2024.04.28 @ 19:12:25 Sessions 3 Manual Loads 0 Difficulty Rogue Special Mode None Game No. 32 Rogue 2 Adventurer 30 Explorer 0 Win Type - Total 3 Types 2/1/0/0/0/0/0/0/0 Lore% 48 Gallery% 64 Achievement% 59 Wizard Run 0 Options --------- Layout 0 ASCII 0 Keyboard 0 Movement Mouse Keybinds 0 Fullscreen 1 Font 18/SmallcapsGlow Map View 76x50 Zoom Use 0% Tactical HUD 1 Map Filters NONE Filters NONE Steam 1 RUN: b1de9770-58b2-44bb-b36c-8519f80de805